[Event "Queens Festival Final-C 2022"]
[Site "Tornelo"]
[Date "2022.06.25"]
[Round "4.3"]
[White "Pragnya H G"]
[Black "Davari, Sara"]
[Result "0-1"]
[ECO "A01"]
[WhiteElo "1605"]
[BlackElo "1674"]
[Annotator "NA RC"]
[PlyCount "100"]
[EventDate "2022.06.24"]
[EventType "tourn"]
[EventCountry "NET"]
[SourceTitle "playchess.com"]
[Source "ChessBase"]
[SourceQuality "1"]
[TimeControl "180+2"]

1. b3 {[%emt 0:00:02]} e5 {[%emt 0:00:08]} 2. Bb2 {[%emt 0:00:01]} Nc6 {[%emt 0:00:02]} 3. e3 {[%emt 0:00:05]} Nf6 {[%emt 0:00:05]} 4. c4 {[%emt 0:00:04]} Be7 {[%emt 0:00:06]} 5. g3 {[%emt 0:00:02]} O-O {[%emt 0:00:02]} 6. Bg2 {[%emt 0:00:03]} d6 {[%emt 0:00:02]} 7. Ne2 {[%emt 0:00:03]} Be6 {[%emt 0:00:05]} 8. d4 {[%emt 0:00:06]} exd4 {[%emt 0:00:03]} 9. exd4 {[%emt 0:00:02]} d5 {[%emt 0:00:02]} 10. Nd2 {[%emt 0:00:05]} Nb4 {[%emt 0:00:15]} 11. Qb1 {[%emt 0:00:20]} Qd7 {[%emt 0:00:13]} 12. O-O {[%emt 0:00:33]} Bf5 {[%emt 0:00:06]} 13. Qd1 {[%emt 0:00:02]} Bc2 {[%emt 0:00:40]} 14. Qc1 {[%emt 0:00:06]} Bd3 {[%emt 0:00:07]} 15. Qd1 {[%emt 0:00:07]} Rfe8 {[%emt 0:00:29]} 16. Bf3 {[%emt 0:00:26]} Bf8 {[%emt 0:00:08]} 17. a3 {[%emt 0:00:11]} Nc6 {[%emt 0:00:20]} 18. cxd5 {[%emt 0:00:09]} Nxd5 {[%emt 0:00:04]} 19. Nc4 {[%emt 0:00:28]} Bxe2 {[%emt 0:00:08]} 20. Bxe2 {[%emt 0:00:00]} Nb6 {[%emt 0:00:05]} 21. Bf3 {[%emt 0:00:08]} Rad8 {[%emt 0:00:08]} 22. Nxb6 {[%emt 0:00:11]} axb6 {[%emt 0:00:02]} 23. d5 {[%emt 0:00:00]} Ne7 {[%emt 0:00:11]} 24. Qc2 {[%emt 0:00:11]} Nxd5 {[%emt 0:00:08]} 25. Rad1 {[%emt 0:00:02]} c6 {[%emt 0:00:02]} 26. Be4 {[%emt 0:00:04]} h6 {[%emt 0:00:03]} 27. Bf3 {[%emt 0:00:04]} Qe7 {[%emt 0:00:01]} 28. Bxd5 {[%emt 0:00:03]} cxd5 {[%emt 0:00:02]} 29. Qd3 {[%emt 0:00:01]} Qd6 {[%emt 0:00:02]} 30. Rfe1 {[%emt 0:00:02]} Re6 {[%emt 0:00:05]} 31. Rxe6 {[%emt 0:00:01]} Qxe6 {[%emt 0:00:02]} 32. Qd4 {[%emt 0:00:07]} Qc6 {[%emt 0:00:04]} 33. Qd3 {[%emt 0:00:01]} Qe6 {[%emt 0:00:02]} 34. Kf1 {[%emt 0:00:01]} Qg6 {[%emt 0:00:01]} 35. Qxg6 {[%emt 0:00:02]} fxg6 {[%emt 0:00:01]} 36. b4 {[%emt 0:00:01]} Kf7 {[%emt 0:00:01]} 37. Bd4 {[%emt 0:00:01]} b5 {[%emt 0:00:02]} 38. Rc1 {[%emt 0:00:02]} Bd6 {[%emt 0:00:02]} 39. Ke2 {[%emt 0:00:04]} Ra8 {[%emt 0:00:02]} 40. Rc3 {[%emt 0:00:01]} Ke6 {[%emt 0:00:02]} 41. Kd3 {[%emt 0:00:01]} Rf8 {[%emt 0:00:02]} 42. f4 {[%emt 0:00:02]} Rf7 {[%emt 0:00:02]} 43. Bc5 {[%emt 0:00:01]} Rc7 {[%emt 0:00:03]} 44. Bxd6 {[%emt 0:00:01]} Rxc3+ {[%emt 0:00:02]} 45. Kxc3 {[%emt 0:00:01]} Kxd6 {[%emt 0:00:01]} 46. Kd4 {[%emt 0:00:01]} b6 {[%emt 0:00:01]} 47. g4 {[%emt 0:00:01]} Ke6 {[%emt 0:00:02]} 48. h4 {[%emt 0:00:02]} Kd6 {[%emt 0:00:01]} 49. f5 {[%emt 0:00:01]} gxf5 {[%emt 0:00:02]} 50. gxf5 {[%emt 0:00:02]} h5 {[%emt 0:00:01]} 0-1

[Event "Queens Festival Final-C 2022"]
[Site "Tornelo"]
[Date "2022.06.25"]
[Round "4.4"]
[White "Orbe Vivero, Veronica Priscila"]
[Black "Jimenez Salas, Maria Teresa"]
[Result "1-0"]
[ECO "B22"]
[WhiteElo "1636"]
[BlackElo "1813"]
[Annotator "NA RC"]
[PlyCount "57"]
[EventDate "2022.06.24"]
[EventType "tourn"]
[EventCountry "NET"]
[SourceTitle "playchess.com"]
[Source "ChessBase"]
[SourceQuality "1"]
[TimeControl "180+2"]

1. e4 {[%emt 0:00:02]} c5 {[%emt 0:00:06]} 2. c3 {[%emt 0:00:03]} Nf6 {[%emt 0:00:03]} 3. e5 {[%emt 0:00:03]} Nd5 {[%emt 0:00:02]} 4. d4 {[%emt 0:00:01]} cxd4 {[%emt 0:00:01]} 5. Nf3 {[%emt 0:00:03]} d6 {[%emt 0:00:16]} 6. cxd4 {[%emt 0:00:03]} e6 {[%emt 0:00:13]} 7. Bc4 {[%emt 0:00:14]} Nb6 {[%emt 0:00:10]} 8. Bd3 {[%emt 0:00:06]} Nc6 {[%emt 0:00:20]} 9. O-O {[%emt 0:00:04]} Be7 {[%emt 0:00:04]} 10. Nc3 {[%emt 0:00:08]} O-O {[%emt 0:00:07]} 11. Qe2 {[%emt 0:00:36]} a6 {[%emt 0:00:15]} 12. Qe4 {[%emt 0:00:37]} g6 {[%emt 0:00:03]} 13. Bh6 {[%emt 0:00:04]} Re8 {[%emt 0:00:01]} 14. a3 {[%emt 0:00:06]} dxe5 {[%emt 0:00:20]} 15. dxe5 {[%emt 0:00:03]} Nd5 {[%emt 0:00:01]} 16. Rfd1 {[%emt 0:00:06]} Nxc3 {[%emt 0:00:06]} 17. bxc3 {[%emt 0:00:03]} Qc7 {[%emt 0:00:02]} 18. Rac1 {[%emt 0:00:16]} Bxa3 {[%emt 0:00:10]} 19. Rc2 {[%emt 0:00:04]} Be7 {[%emt 0:00:05]} 20. Re1 {[%emt 0:00:07]} b5 {[%emt 0:00:01]} 21. Ng5 {[%emt 0:00:06]} Bb7 {[%emt 0:00:45]} 22. Qh4 {[%emt 0:00:03]} Qd8 {[%emt 0:00:10]} 23. Rd2 {[%emt 0:00:06]} Qa5 {[%emt 0:00:06]} 24. Rc2 {[%emt 0:00:17]} Rad8 {[%emt 0:00:05]} 25. Be4 {[%emt 0:00:11]} Qa3 {[%emt 0:00:07]} 26. h3 {[%emt 0:00:06]} Na5 {[%emt 0:00:06]} 27. Qf4 {[%emt 0:00:09]} Bxe4 {[%emt 0:00:05]} 28. Qxf7+ {[%emt 0:00:02]} Kh8 {[%emt 0:00:02]} 29. Qxh7# {[%emt 0:00:02]} 1-0

[Event "Queens Festival Final-C 2022"]
[Site "Tornelo"]
[Date "2022.06.25"]
[Round "5.2"]
[White "Jimenez Salas, Maria Teresa"]
[Black "Vicze, Zsofia"]
[Result "1-0"]
[ECO "B56"]
[WhiteElo "1813"]
[BlackElo "1749"]
[Annotator "NA RC"]
[PlyCount "61"]
[EventDate "2022.06.24"]
[EventType "tourn"]
[EventCountry "NET"]
[SourceTitle "playchess.com"]
[Source "ChessBase"]
[SourceQuality "1"]
[TimeControl "180+2"]

1. e4 {[%emt 0:00:02]} c5 {[%emt 0:00:04]} 2. Nf3 {[%emt 0:00:02]} Nc6 {[%emt 0:00:02]} 3. d4 {[%emt 0:00:01]} cxd4 {[%emt 0:00:01]} 4. Nxd4 {[%emt 0:00:01]} Nf6 {[%emt 0:00:02]} 5. Nc3 {[%emt 0:00:02]} d6 {[%emt 0:00:01]} 6. f3 {[%emt 0:00:07]} e5 {[%emt 0:00:02]} 7. Nb3 {[%emt 0:00:07]} Be6 {[%emt 0:00:04]} 8. Be3 {[%emt 0:00:13]} Be7 {[%emt 0:00:03]} 9. Nd5 {[%emt 0:00:11]} O-O {[%emt 0:00:13]} 10. Be2 {[%emt 0:00:02]} Qd7 {[%emt 0:00:05]} 11. c4 {[%emt 0:00:02]} Rfd8 {[%emt 0:00:04]} 12. O-O {[%emt 0:00:02]} Rac8 {[%emt 0:00:03]} 13. Rc1 {[%emt 0:00:03]} b6 {[%emt 0:00:10]} 14. Qd2 {[%emt 0:00:11]} Nb8 {[%emt 0:00:08]} 15. Rfd1 {[%emt 0:00:04]} Na6 {[%emt 0:00:05]} 16. Na1 {[%emt 0:00:19]} Nc7 {[%emt 0:00:10]} 17. Bf2 {[%emt 0:00:05]} Qe8 {[%emt 0:00:12]} 18. Nc2 {[%emt 0:00:02]} Ncxd5 {[%emt 0:00:04]} 19. cxd5 {[%emt 0:00:02]} Bd7 {[%emt 0:00:02]} 20. Nb4 {[%emt 0:00:02]} h6 {[%emt 0:00:41]} 21. Ba6 {[%emt 0:00:28]} Rb8 {[%emt 0:00:04]} 22. Nc6 {[%emt 0:00:04]} Bxc6 {[%emt 0:00:04]} 23. dxc6 {[%emt 0:00:04]} Bf8 {[%emt 0:00:23]} 24. c7 {[%emt 0:00:02]} Rdc8 {[%emt 0:00:05]} 25. cxb8=Q {[%emt 0:00:04]} Rxb8 {[%emt 0:00:01]} 26. Rc7 {[%emt 0:00:05]} Nd7 {[%emt 0:00:06]} 27. Bb5 {[%emt 0:00:02]} Rd8 {[%emt 0:00:03]} 28. Rxa7 {[%emt 0:00:07]} Qe6 {[%emt 0:00:02]} 29. Bxd7 {[%emt 0:00:04]} Rxd7 {[%emt 0:00:02]} 30. Rxd7 {[%emt 0:00:01]} Qxd7 {[%emt 0:00:02]} 31. Bxb6 {[%emt 0:00:01]} 1-0

[Event "Queens Festival Final-C 2022"]
[Site "Tornelo"]
[Date "2022.06.25"]
[Round "5.3"]
[White "Davari, Sara"]
[Black "Orbe Vivero, Veronica Priscila"]
[Result "1-0"]
[ECO "B31"]
[WhiteElo "1674"]
[BlackElo "1636"]
[Annotator "NA RC"]
[PlyCount "103"]
[EventDate "2022.06.24"]
[EventType "tourn"]
[EventCountry "NET"]
[SourceTitle "playchess.com"]
[Source "ChessBase"]
[SourceQuality "1"]
[TimeControl "180+2"]

1. e4 {[%emt 0:00:02]} c5 {[%emt 0:00:05]} 2. Nf3 {[%emt 0:00:02]} Nc6 {[%emt 0:00:03]} 3. Bb5 {[%emt 0:00:01]} g6 {[%emt 0:00:03]} 4. O-O {[%emt 0:00:03]} Bg7 {[%emt 0:00:01]} 5. Re1 {[%emt 0:00:01]} Nf6 {[%emt 0:00:03]} 6. e5 {[%emt 0:00:01]} Nd5 {[%emt 0:00:03]} 7. Nc3 {[%emt 0:00:01]} Nc7 {[%emt 0:00:05]} 8. Bxc6 {[%emt 0:00:02]} bxc6 {[%emt 0:00:02]} 9. Ne4 {[%emt 0:00:04]} Ne6 {[%emt 0:00:05]} 10. d3 {[%emt 0:00:05]} O-O {[%emt 0:00:07]} 11. Be3 {[%emt 0:00:03]} Rb8 {[%emt 0:00:05]} 12. Rb1 {[%emt 0:00:08]} Qa5 {[%emt 0:00:04]} 13. a3 {[%emt 0:00:08]} Rd8 {[%emt 0:00:06]} 14. Neg5 {[%emt 0:00:49]} d6 {[%emt 0:00:44]} 15. Nxe6 {[%emt 0:00:13]} Bxe6 {[%emt 0:00:03]} 16. Bg5 {[%emt 0:00:10]} Rd7 {[%emt 0:00:03]} 17. exd6 {[%emt 0:00:12]} exd6 {[%emt 0:00:02]} 18. c3 {[%emt 0:00:08]} Rdb7 {[%emt 0:00:15]} 19. b4 {[%emt 0:00:11]} Qxa3 {[%emt 0:00:07]} 20. Bf4 {[%emt 0:00:24]} Bxc3 {[%emt 0:00:31]} 21. Bxd6 {[%emt 0:00:07]} Rd8 {[%emt 0:00:04]} 22. Bxc5 {[%emt 0:00:06]} Bxe1 {[%emt 0:00:23]} 23. Nxe1 {[%emt 0:00:01]} Rbd7 {[%emt 0:00:19]} 24. d4 {[%emt 0:00:03]} Bf5 {[%emt 0:00:17]} 25. Ra1 {[%emt 0:00:06]} Qc3 {[%emt 0:00:03]} 26. Nf3 {[%emt 0:00:14]} Re8 {[%emt 0:00:03]} 27. h3 {[%emt 0:00:10]} Be4 {[%emt 0:00:02]} 28. Nd2 {[%emt 0:00:05]} Bc2 {[%emt 0:00:02]} 29. Qc1 {[%emt 0:00:04]} Re2 {[%emt 0:00:02]} 30. Nf3 {[%emt 0:00:05]} Rd8 {[%emt 0:00:04]} 31. Ra3 {[%emt 0:00:05]} Qc4 {[%emt 0:00:04]} 32. Ne5 {[%emt 0:00:03]} Qb5 {[%emt 0:00:03]} 33. Re3 {[%emt 0:00:02]} f6 {[%emt 0:00:02]} 34. Rxe2 {[%emt 0:00:03]} Qxe2 {[%emt 0:00:01]} 35. Nxc6 {[%emt 0:00:01]} Re8 {[%emt 0:00:02]} 36. Ne7+ {[%emt 0:00:01]} Kf7 {[%emt 0:00:04]} 37. Qh6 {[%emt 0:00:04]} Rxe7 {[%emt 0:00:02]} 38. Qxh7+ {[%emt 0:00:02]} Ke8 {[%emt 0:00:01]} 39. Bxe7 {[%emt 0:00:01]} Qxe7 {[%emt 0:00:02]} 40. Qg8+ {[%emt 0:00:02]} Kd7 {[%emt 0:00:01]} 41. Qd5+ {[%emt 0:00:02]} Ke8 {[%emt 0:00:02]} 42. Qc6+ {[%emt 0:00:02]} Kf7 {[%emt 0:00:02]} 43. Qxc2 {[%emt 0:00:01]} Qe1+ {[%emt 0:00:01]} 44. Kh2 {[%emt 0:00:01]} Qxb4 {[%emt 0:00:02]} 45. Qc7+ {[%emt 0:00:02]} Qe7 {[%emt 0:00:01]} 46. Qc4+ {[%emt 0:00:03]} Kg7 {[%emt 0:00:02]} 47. g3 {[%emt 0:00:05]} Qd6 {[%emt 0:00:02]} 48. d5 {[%emt 0:00:01]} Qe5 {[%emt 0:00:03]} 49. Qc6 {[%emt 0:00:03]} Qe2 {[%emt 0:00:02]} 50. Qc5 {[%emt 0:00:03]} Qa2 {[%emt 0:00:03]} 51. d6 {[%emt 0:00:01]} f5 {[%emt 0:00:02]} 52. d7 {[%emt 0:00:03]} 1-0

[Event "Queens Festival Final-C 2022"]
[Site "Tornelo"]
[Date "2022.06.25"]
[Round "5.4"]
[White "Stadlinger, Lea"]
[Black "Pragnya H G"]
[Result "0-1"]
[ECO "B90"]
[WhiteElo "1723"]
[BlackElo "1605"]
[Annotator "NA RC"]
[PlyCount "60"]
[EventDate "2022.06.24"]
[EventType "tourn"]
[EventCountry "NET"]
[SourceTitle "playchess.com"]
[Source "ChessBase"]
[SourceQuality "1"]
[TimeControl "180+2"]

1. e4 {[%emt 0:00:02]} c5 {[%emt 0:00:04]} 2. Nf3 {[%emt 0:00:03]} d6 {[%emt 0:00:01]} 3. d4 {[%emt 0:00:01]} cxd4 {[%emt 0:00:01]} 4. Nxd4 {[%emt 0:00:01]} Nf6 {[%emt 0:00:01]} 5. Nc3 {[%emt 0:00:01]} a6 {[%emt 0:00:01]} 6. Be3 {[%emt 0:00:01]} e5 {[%emt 0:00:01]} 7. Nf3 {[%emt 0:00:07]} Be7 {[%emt 0:00:04]} 8. Qd2 {[%emt 0:00:04]} O-O {[%emt 0:00:05]} 9. O-O-O {[%emt 0:00:01]} b5 {[%emt 0:00:01]} 10. a3 {[%emt 0:00:05]} Bb7 {[%emt 0:00:02]} 11. Bd3 {[%emt 0:00:04]} Nbd7 {[%emt 0:00:04]} 12. Rhe1 {[%emt 0:00:04]} Rc8 {[%emt 0:00:05]} 13. g3 {[%emt 0:00:18]} Qc7 {[%emt 0:00:10]} 14. Bg5 {[%emt 0:00:07]} h6 {[%emt 0:00:09]} 15. Bxf6 {[%emt 0:00:01]} Nxf6 {[%emt 0:00:01]} 16. Bf1 {[%emt 0:00:03]} Rfd8 {[%emt 0:00:07]} 17. Bh3 {[%emt 0:00:02]} Rb8 {[%emt 0:00:05]} 18. Nh4 {[%emt 0:00:05]} d5 {[%emt 0:00:04]} 19. exd5 {[%emt 0:00:11]} Nxd5 {[%emt 0:00:02]} 20. Nxd5 {[%emt 0:00:03]} Rxd5 {[%emt 0:00:04]} 21. Qe2 {[%emt 0:00:06]} Rc5 {[%emt 0:00:10]} 22. c3 {[%emt 0:00:13]} a5 {[%emt 0:00:04]} 23. Nf5 {[%emt 0:00:05]} Bg5+ {[%emt 0:00:03]} 24. Kb1 {[%emt 0:00:08]} b4 {[%emt 0:00:04]} 25. axb4 {[%emt 0:00:19]} axb4 {[%emt 0:00:02]} 26. cxb4 {[%emt 0:00:00]} Rc4 {[%emt 0:00:10]} 27. Qxe5 {[%emt 0:00:05]} Qxe5 {[%emt 0:00:06]} 28. Rxe5 {[%emt 0:00:03]} Be4+ {[%emt 0:00:01]} 29. Ka2 {[%emt 0:00:13]} Rcxb4 {[%emt 0:00:07]} 30. Rd4 {[%emt 0:00:23]} Ra8+ {[%emt 0:00:04]} 0-1

[Event "Queens Festival Final-C 2022"]
[Site "Tornelo"]
[Date "2022.06.25"]
[Round "5.5"]
[White "Lampard, Alice"]
[Black "Sanudula, K M Dahamdi"]
[Result "0-1"]
[ECO "D35"]
[WhiteElo "1756"]
[BlackElo "1710"]
[Annotator "NA RC"]
[PlyCount "66"]
[EventDate "2022.06.24"]
[EventType "tourn"]
[EventCountry "NET"]
[SourceTitle "playchess.com"]
[Source "ChessBase"]
[SourceQuality "1"]
[TimeControl "180+2"]

1. d4 {[%emt 0:00:02]} Nf6 {[%emt 0:00:04]} 2. c4 {[%emt 0:00:02]} e6 {[%emt 0:00:02]} 3. Nc3 {[%emt 0:00:02]} d5 {[%emt 0:00:01]} 4. cxd5 {[%emt 0:00:02]} exd5 {[%emt 0:00:01]} 5. Qc2 {[%emt 0:00:02]} Be7 {[%emt 0:00:01]} 6. Bg5 {[%emt 0:00:02]} O-O {[%emt 0:00:04]} 7. e3 {[%emt 0:00:01]} h6 {[%emt 0:00:05]} 8. Bf4 {[%emt 0:00:05]} c6 {[%emt 0:00:03]} 9. Nf3 {[%emt 0:00:04]} Be6 {[%emt 0:00:05]} 10. Be2 {[%emt 0:00:04]} Qc8 {[%emt 0:00:04]} 11. a3 {[%emt 0:00:16]} Bf5 {[%emt 0:00:02]} 12. Bd3 {[%emt 0:00:04]} Bxd3 {[%emt 0:00:04]} 13. Qxd3 {[%emt 0:00:00]} Qg4 {[%emt 0:00:04]} 14. O-O-O {[%emt 0:00:20]} Nbd7 {[%emt 0:00:13]} 15. Rdg1 {[%emt 0:00:10]} Nb6 {[%emt 0:00:02]} 16. h3 {[%emt 0:00:02]} Qe6 {[%emt 0:00:04]} 17. g4 {[%emt 0:00:11]} Ne4 {[%emt 0:00:01]} 18. Rh2 {[%emt 0:00:24]} c5 {[%emt 0:00:15]} 19. g5 {[%emt 0:00:14]} h5 {[%emt 0:00:04]} 20. Ne5 {[%emt 0:00:16]} cxd4 {[%emt 0:00:09]} 21. exd4 {[%emt 0:00:13]} Nxc3 {[%emt 0:00:02]} 22. bxc3 {[%emt 0:00:05]} Bxa3+ {[%emt 0:00:02]} 23. Kd1 {[%emt 0:00:07]} Nc4 {[%emt 0:00:06]} 24. Nxc4 {[%emt 0:00:16]} dxc4 {[%emt 0:00:00]} 25. Qd2 {[%emt 0:00:13]} Qf5 {[%emt 0:00:07]} 26. Rhg2 {[%emt 0:00:16]} Rfe8 {[%emt 0:00:08]} 27. Be5 {[%emt 0:00:13]} Rad8 {[%emt 0:00:07]} 28. f4 {[%emt 0:00:03]} Bd6 {[%emt 0:00:09]} 29. g6 {[%emt 0:00:03]} f6 {[%emt 0:00:05]} 30. Re2 {[%emt 0:00:05]} fxe5 {[%emt 0:00:05]} 31. fxe5 {[%emt 0:00:02]} Ba3 {[%emt 0:00:07]} 32. Rg5 {[%emt 0:00:01]} Qb1+ {[%emt 0:00:04]} 33. Qc1 {[%emt 0:00:03]} Qxc1# {[%emt 0:00:01]} 0-1

[Event "Queens Festival Final-C 2022"]
[Site "Tornelo"]
[Date "2022.06.25"]
[Round "6.1"]
[White "Castillo Beitia, Ashley Alexandra"]
[Black "Sanudula, K M Dahamdi"]
[Result "0-1"]
[ECO "D35"]
[WhiteElo "1620"]
[BlackElo "1710"]
[Annotator "NA RC"]
[PlyCount "70"]
[EventDate "2022.06.24"]
[EventType "tourn"]
[EventCountry "NET"]
[SourceTitle "playchess.com"]
[Source "ChessBase"]
[SourceQuality "1"]
[TimeControl "180+2"]

1. d4 {[%emt 0:00:02]} Nf6 {[%emt 0:00:05]} 2. c4 {[%emt 0:00:02]} e6 {[%emt 0:00:02]} 3. Nc3 {[%emt 0:00:01]} d5 {[%emt 0:00:01]} 4. cxd5 {[%emt 0:00:02]} exd5 {[%emt 0:00:00]} 5. Bg5 {[%emt 0:00:01]} Be7 {[%emt 0:00:02]} 6. e3 {[%emt 0:00:02]} h6 {[%emt 0:00:00]} 7. Bh4 {[%emt 0:00:03]} Ne4 {[%emt 0:00:07]} 8. Bxe7 {[%emt 0:00:03]} Kxe7 {[%emt 0:00:04]} 9. Nxe4 {[%emt 0:00:04]} dxe4 {[%emt 0:00:02]} 10. Qc2 {[%emt 0:00:07]} f5 {[%emt 0:00:08]} 11. Bc4 {[%emt 0:00:02]} Nc6 {[%emt 0:00:05]} 12. Ne2 {[%emt 0:00:02]} g5 {[%emt 0:00:05]} 13. O-O-O {[%emt 0:00:03]} Qd6 {[%emt 0:00:07]} 14. Kb1 {[%emt 0:00:05]} a6 {[%emt 0:00:04]} 15. Qc3 {[%emt 0:00:03]} b5 {[%emt 0:00:03]} 16. d5 {[%emt 0:00:01]} Ne5 {[%emt 0:00:09]} 17. Nd4 {[%emt 0:00:16]} bxc4 {[%emt 0:00:20]} 18. Nc6+ {[%emt 0:00:02]} Kf6 {[%emt 0:00:02]} 19. f4 {[%emt 0:00:02]} exf3 {[%emt 0:00:08]} 20. gxf3 {[%emt 0:00:02]} f4 {[%emt 0:00:05]} 21. exf4 {[%emt 0:00:03]} gxf4 {[%emt 0:00:01]} 22. Rde1 {[%emt 0:00:04]} Re8 {[%emt 0:00:04]} 23. Nxe5 {[%emt 0:00:07]} Rxe5 {[%emt 0:00:03]} 24. Re4 {[%emt 0:00:10]} Bf5 {[%emt 0:00:02]} 25. Rhe1 {[%emt 0:00:07]} Rae8 {[%emt 0:00:02]} 26. Ka1 {[%emt 0:00:02]} Bxe4 {[%emt 0:00:01]} 27. Rxe4 {[%emt 0:00:02]} Kf5 {[%emt 0:00:02]} 28. Qxc4 {[%emt 0:00:11]} Rxe4 {[%emt 0:00:05]} 29. fxe4+ {[%emt 0:00:02]} Rxe4 {[%emt 0:00:02]} 30. Qc2 {[%emt 0:00:02]} Qxd5 {[%emt 0:00:04]} 31. a3 {[%emt 0:00:02]} Ke5 {[%emt 0:00:02]} 32. Qc3+ {[%emt 0:00:02]} Ke6 {[%emt 0:00:03]} 33. Qc1 {[%emt 0:00:09]} Rd4 {[%emt 0:00:03]} 34. Qe1+ {[%emt 0:00:02]} Kd6 {[%emt 0:00:01]} 35. Qc3 {[%emt 0:00:36]} Rd1+ {[%emt 0:00:05]} 0-1

[Event "Queens Festival Final-C 2022"]
[Site "Tornelo"]
[Date "2022.06.25"]
[Round "6.2"]
[White "Pragnya H G"]
[Black "Lampard, Alice"]
[Result "1-0"]
[ECO "D78"]
[WhiteElo "1605"]
[BlackElo "1756"]
[Annotator "NA RC"]
[PlyCount "91"]
[EventDate "2022.06.24"]
[EventType "tourn"]
[EventCountry "NET"]
[SourceTitle "playchess.com"]
[Source "ChessBase"]
[SourceQuality "1"]
[TimeControl "180+2"]

1. d4 {[%emt 0:00:02]} Nf6 {[%emt 0:00:05]} 2. g3 {[%emt 0:00:02]} d5 {[%emt 0:00:06]} 3. Bg2 {[%emt 0:00:01]} g6 {[%emt 0:00:01]} 4. b3 {[%emt 0:00:02]} Bg7 {[%emt 0:00:03]} 5. Bb2 {[%emt 0:00:01]} O-O {[%emt 0:00:02]} 6. Nd2 {[%emt 0:00:01]} c6 {[%emt 0:00:07]} 7. Ngf3 {[%emt 0:00:01]} Re8 {[%emt 0:00:04]} 8. O-O {[%emt 0:00:02]} Nbd7 {[%emt 0:00:04]} 9. c4 {[%emt 0:00:03]} Nb6 {[%emt 0:00:08]} 10. Ne5 {[%emt 0:00:06]} Nfd7 {[%emt 0:00:06]} 11. Nxd7 {[%emt 0:00:03]} Bxd7 {[%emt 0:00:08]} 12. c5 {[%emt 0:00:02]} Nc8 {[%emt 0:00:04]} 13. e4 {[%emt 0:00:01]} Be6 {[%emt 0:00:26]} 14. e5 {[%emt 0:00:15]} Qd7 {[%emt 0:00:16]} 15. Nf3 {[%emt 0:00:09]} Bh3 {[%emt 0:00:05]} 16. Re1 {[%emt 0:00:04]} Bxg2 {[%emt 0:00:01]} 17. Kxg2 {[%emt 0:00:03]} e6 {[%emt 0:00:02]} 18. Bc1 {[%emt 0:00:07]} Ne7 {[%emt 0:00:03]} 19. Bg5 {[%emt 0:00:03]} h6 {[%emt 0:00:16]} 20. Bf6 {[%emt 0:00:02]} Kh7 {[%emt 0:00:11]} 21. g4 {[%emt 0:00:18]} g5 {[%emt 0:00:16]} 22. Bxg7 {[%emt 0:00:05]} Kxg7 {[%emt 0:00:02]} 23. h4 {[%emt 0:00:01]} gxh4 {[%emt 0:00:04]} 24. Rh1 {[%emt 0:00:06]} Ng6 {[%emt 0:00:13]} 25. g5 {[%emt 0:00:06]} h3+ {[%emt 0:00:07]} 26. Rxh3 {[%emt 0:00:03]} Nf4+ {[%emt 0:00:01]} 27. Kg3 {[%emt 0:00:06]} Nxh3 {[%emt 0:00:02]} 28. gxh6+ {[%emt 0:00:02]} Kxh6 {[%emt 0:00:12]} 29. Kxh3 {[%emt 0:00:10]} Kg7 {[%emt 0:00:05]} 30. Qg1+ {[%emt 0:00:04]} Kf8 {[%emt 0:00:03]} 31. Qg5 {[%emt 0:00:08]} f6 {[%emt 0:00:06]} 32. Qxf6+ {[%emt 0:00:06]} Qf7 {[%emt 0:00:02]} 33. Ng5 {[%emt 0:00:05]} Qxf6 {[%emt 0:00:04]} 34. exf6 {[%emt 0:00:00]} e5 {[%emt 0:00:15]} 35. Kg4 {[%emt 0:00:06]} exd4 {[%emt 0:00:02]} 36. Rh1 {[%emt 0:00:02]} Re4+ {[%emt 0:00:03]} 37. Nxe4 {[%emt 0:00:03]} Kf7 {[%emt 0:00:04]} 38. Rh7+ {[%emt 0:00:03]} Kg8 {[%emt 0:00:06]} 39. Rg7+ {[%emt 0:00:02]} Kf8 {[%emt 0:00:03]} 40. Ng5 {[%emt 0:00:01]} Re8 {[%emt 0:00:03]} 41. Kh5 {[%emt 0:00:12]} Re5 {[%emt 0:00:04]} 42. Kg6 {[%emt 0:00:03]} d3 {[%emt 0:00:07]} 43. Nh7+ {[%emt 0:00:06]} Ke8 {[%emt 0:00:02]} 44. f7+ {[%emt 0:00:01]} Ke7 {[%emt 0:00:03]} 45. f8=Q+ {[%emt 0:00:02]} Ke6 {[%emt 0:00:01]} 46. Qf6# {[%emt 0:00:01]} 1-0

[Event "Queens Festival Final-C 2022"]
[Site "Tornelo"]
[Date "2022.06.25"]
[Round "6.3"]
[White "Orbe Vivero, Veronica Priscila"]
[Black "Stadlinger, Lea"]
[Result "1-0"]
[ECO "C89"]
[WhiteElo "1636"]
[BlackElo "1723"]
[Annotator "NA RC"]
[PlyCount "87"]
[EventDate "2022.06.24"]
[EventType "tourn"]
[EventCountry "NET"]
[SourceTitle "playchess.com"]
[Source "ChessBase"]
[SourceQuality "1"]
[TimeControl "180+2"]

1. e4 {[%emt 0:00:02]} e5 {[%emt 0:00:04]} 2. Nf3 {[%emt 0:00:03]} Nc6 {[%emt 0:00:02]} 3. Bb5 {[%emt 0:00:02]} a6 {[%emt 0:00:04]} 4. Ba4 {[%emt 0:00:02]} Nf6 {[%emt 0:00:06]} 5. d3 {[%emt 0:00:02]} b5 {[%emt 0:00:17]} 6. Bb3 {[%emt 0:00:02]} Be7 {[%emt 0:00:01]} 7. O-O {[%emt 0:00:03]} O-O {[%emt 0:00:01]} 8. c3 {[%emt 0:00:02]} d5 {[%emt 0:00:16]} 9. Nbd2 {[%emt 0:00:06]} Bb7 {[%emt 0:00:15]} 10. Re1 {[%emt 0:00:02]} dxe4 {[%emt 0:00:02]} 11. dxe4 {[%emt 0:00:04]} Re8 {[%emt 0:00:08]} 12. Qe2 {[%emt 0:00:02]} Bc5 {[%emt 0:00:03]} 13. h3 {[%emt 0:00:03]} Ne7 {[%emt 0:00:05]} 14. Nxe5 {[%emt 0:00:17]} Rf8 {[%emt 0:00:05]} 15. Bc2 {[%emt 0:00:39]} Ba7 {[%emt 0:00:19]} 16. Ndf3 {[%emt 0:00:04]} c5 {[%emt 0:00:11]} 17. Bg5 {[%emt 0:00:03]} Ng6 {[%emt 0:00:10]} 18. Rad1 {[%emt 0:00:05]} Qb6 {[%emt 0:00:08]} 19. Bxf6 {[%emt 0:00:04]} gxf6 {[%emt 0:00:06]} 20. Nd7 {[%emt 0:00:02]} Qc7 {[%emt 0:00:13]} 21. Nxf8 {[%emt 0:00:33]} Rxf8 {[%emt 0:00:02]} 22. Qd2 {[%emt 0:00:08]} b4 {[%emt 0:00:22]} 23. Qd7 {[%emt 0:00:03]} Qb6 {[%emt 0:00:03]} 24. c4 {[%emt 0:00:02]} Nf4 {[%emt 0:00:12]} 25. Qg4+ {[%emt 0:00:05]} Ng6 {[%emt 0:00:05]} 26. e5 {[%emt 0:00:05]} fxe5 {[%emt 0:00:07]} 27. Nxe5 {[%emt 0:00:03]} Bb8 {[%emt 0:00:01]} 28. Nd7 {[%emt 0:00:02]} Qc7 {[%emt 0:00:05]} 29. Nxb8 {[%emt 0:00:19]} Rxb8 {[%emt 0:00:10]} 30. Rd7 {[%emt 0:00:02]} Qc6 {[%emt 0:00:03]} 31. Be4 {[%emt 0:00:08]} Qb6 {[%emt 0:00:03]} 32. Bxb7 {[%emt 0:00:06]} Rxb7 {[%emt 0:00:02]} 33. Re8+ {[%emt 0:00:03]} Kg7 {[%emt 0:00:02]} 34. Rdd8 {[%emt 0:00:02]} Qf6 {[%emt 0:00:07]} 35. Rg8+ {[%emt 0:00:03]} Kh6 {[%emt 0:00:01]} 36. Qf3 {[%emt 0:00:15]} Qxb2 {[%emt 0:00:02]} 37. Qxb7 {[%emt 0:00:02]} Qc1+ {[%emt 0:00:03]} 38. Kh2 {[%emt 0:00:02]} Qf4+ {[%emt 0:00:02]} 39. g3 {[%emt 0:00:05]} Qxf2+ {[%emt 0:00:01]} 40. Qg2 {[%emt 0:00:01]} Qf6 {[%emt 0:00:04]} 41. Rc8 {[%emt 0:00:05]} Ne7 {[%emt 0:00:03]} 42. Qd2+ {[%emt 0:00:07]} Kh5 {[%emt 0:00:05]} 43. g4+ {[%emt 0:00:03]} Kh4 {[%emt 0:00:03]} 44. Qe1+ {[%emt 0:00:02]} 1-0